lending/lending_fUSD_20240703
["ID","MTS","AMOUNT","RATE_DAILY","PERIOD"]
[331040152,1720027112155,330.7805851,0.00011199,2]
[331040153,1720027113624,959.77692089,0.00011199,2]
[331040155,1720027115086,944.91389166,0.00011199,2]
[331040156,1720027115545,200.08525735,0.00011199,2]
[331040157,1720027117246,206.17373388,0.00011199,2]
[331040158,1720027168938,1877.46721545,0.00011199,2]
[331040159,1720027175755,348.60068368,0.00011199,2]
[331040160,1720027197807,959.77692089,0.00011199,2]
[331040161,1720027197841,2204.95837318,0.00011199,2]
[331040162,1720027228444,768.82856853,0.00011199,2]
[331040163,1720027231180,5598.83912475,0.00011199,2]
[331040164,1720027242442,1135.44204549,0.00011199,2]
[331040165,1720027244894,533.36085656,0.00011199,2]
[331040166,1720027255531,3114.92167456,0.00011199,2]
[331040167,1720027259880,348.27143208,0.00011199,2]
[331040168,1720027268420,660.95341684,0.00011199,2]
[331040169,1720027293486,1397.07891947,0.00011199,2]
[331040171,1720027425676,5594.31883355,0.00011199,2]
[331040172,1720027476842,1399.28371467,0.00011199,7]
[331040173,1720027490448,2843.24896848,0.00011199,2]
[331040174,1720027511349,169.62976771,0.00011199,2]
[331040175,1720027519586,3073.2177715,0.00011199,2]
[331040180,1720027604777,206.0809587,0.00011199,2]
[331040192,1720027686500,3106.94505996,0.00011199,2]
[331040193,1720027703421,4863.16160766,0.00011199,2]
[331040199,1720027832978,-165.05511883,0.00012173,2]
[331040200,1720027832987,-958.71675623,0.00013574,2]
[331040201,1720027832997,-155.0,0.00014,2]
[331040202,1720027833007,-168.56,0.00014602,2]
[331040203,1720027833017,-180.42,0.00014651,2]
[331040204,1720027833028,-456.26,0.00016439,2]
[331040205,1720027833038,-11179.69129676,0.00017078,2]
[331040206,1720027833049,-210.0,0.00017087,2]
[331040207,1720027833058,-169.80155418,0.00017088,2]
[331040208,1720027833068,-5067.94343738,0.00017088,2]
[331040209,1720027833080,-826.29867666,0.00017088,2]
[331040210,1720027833091,-505.38615579,0.00017088,2]
[331040211,1720027833111,-266.34568794,0.00017088,2]
[331040212,1720027833124,-641.43342479,0.00017088,2]
[331040213,1720027833136,-17339.93252751,0.00017088,2]
[331040214,1720027833148,-499.99,0.0001726,2]
[331040215,1720027833158,-473.62,0.0001788,2]
[331040216,1720027833168,-3026.21301367,0.00017889,2]
[331040217,1720027833178,-2000.0,0.00018053,3]
[331040218,1720027833188,-250.0,0.00018083,2]
[331040219,1720027833198,-150.0,0.0001815,2]
[331040220,1720027833207,-212.9,0.00018187,2]
[331040221,1720027833217,-270.89,0.00018207,2]
[331040222,1720027833226,-250.0,0.00018246,2]
[331040223,1720027833235,-167.59,0.00018653,2]
[331040224,1720027833245,-1683.315,0.00018653,2]
[331040225,1720027833254,-456.26,0.00018703,2]
[331040226,1720027833264,-956.95029332,0.00018759,2]
[331040227,1720027833273,-650.99676465,0.00018899,2]
[331040228,1720027833282,-80.82777885,0.00018919,2]
[331040229,1720027833294,-87.35336286,0.00018919,2]
[331040230,1720027833304,-201.42918999,0.00018919,2]
[331040231,1720027833313,-227.12084219,0.00018919,2]
[331040232,1720027833322,-484.10288802,0.00018999,2]
[331040233,1720027833331,-1250.0,0.00019,2]
[331040234,1720027833342,-276.15184313,0.00019177,2]
[331040235,1720027833352,-250.0,0.00019178,2]
[331040236,1720027833361,-293.73791624,0.00019332,4]
[331040237,1720027833370,-297.37308138,0.00019352,2]
[331040238,1720027833380,-2500.0,0.000195,2]
[331040239,1720027833390,-2006.43390162,0.00019725,2]
[331040240,1720027833399,-275.0,0.0002,2]
[331040241,1720027833409,-473.62,0.00020115,2]
[331040242,1720027833418,-150.0,0.00020325,2]
[331040243,1720027833428,-150.0,0.00020325,2]
[331040244,1720027833437,-150.0,0.00020325,2]
[331040245,1720027833447,-157.38,0.00020325,2]
[331040247,1720027833457,-10794.25711463,0.00020554,2]
[331040248,1720027833491,-15042.74288537,0.00020554,2]
[331040249,1720027833500,-417.14874861,0.00020645,2]
[331040250,1720027833511,-300.37937002,0.00020712,2]
[331040251,1720027833520,-181.452,0.0002075,2]
[331040252,1720027833530,-385.42000634,0.00020815,2]
[331040253,1720027833540,-3768.5956,0.0002087,2]
[331040254,1720027833549,-3268.9447,0.0002087,2]
[331040255,1720027833558,-4289.5519,0.0002087,2]
[331040256,1720027833567,-220.36,0.00020877,2]
[331040257,1720027833576,-745.64251404,0.0002089,2]
[331040258,1720027833585,-825.1237079,0.0002089,2]
[331040259,1720027833595,-456.26,0.00020967,2]
[331040260,1720027833604,-151.0,0.0002098,2]
[331040261,1720027833612,-151.0,0.0002098,2]
[331040262,1720027833621,-151.0,0.0002098,2]
[331040263,1720027833631,-629.52751606,0.0002099,2]
[331040264,1720027833640,-38701.04142246,0.0002099,2]
[331040265,1720027833652,-412.61335126,0.0002099,2]
[331040266,1720027833664,-690.20000005,0.0002099,2]
[331040267,1720027833691,-1800.0,0.0002099,2]
[331040268,1720027833704,-331.9629089,0.0002099,2]
[331040269,1720027833716,-2564.27809117,0.0002099,2]
[331040270,1720027833728,-833.79793316,0.0002099,2]
[331040271,1720027833739,-318.86689986,0.0002099,2]
[331040280,1720027837872,-539.57924322,0.00013128,2]
[331040372,1720027843438,-568.0103828,0.00013128,2]
[331040374,1720027843448,-684.75373736,0.00013574,2]
[331040376,1720027843457,-3513.07985784,0.00014602,2]
[331040408,1720027844541,-4304.832246,0.00014602,2]
[331040409,1720027846062,-1400.55359634,0.00014602,2]
[331040410,1720027846074,-2287.41909908,0.00014602,2]
[331040411,1720027846084,-6429.39430578,0.00018324,2]
[331040415,1720027846506,-555.34910597,0.00018324,2]
[331040422,1720028050931,10876.78488563,0.00011,2]
[331040423,1720028069068,8703.57399812,6.94e-05,2]
[331040424,1720028153617,201.42918999,8.412e-05,2]
[331040427,1720028219022,682664.42535915,0.000225,120]
[331040431,1720028265054,3106.52214219,0.00010196,2]
[331040432,1720028266471,3732.42,0.00010196,2]
[331040435,1720028273232,1500.0,0.00010196,2]
[331040439,1720028363054,2374.1385064,0.00011199,2]
[331040440,1720028409945,52142.96446656,0.00011199,2]
[331040441,1720028409972,129989.46195999,0.00011199,2]
[331040442,1720028593942,169352.75884615,0.00011199,2]
[331040447,1720028748172,2006.43390162,0.00011199,2]
[331040449,1720028791528,1500.0,0.00011199,2]
[331040451,1720028801327,-171.05,0.00011565,2]
[331040452,1720028801348,-180.42,0.00011718,2]
[331040453,1720028801369,-604.12956711,0.000118,2]
[331040454,1720028801389,-1849.9685,0.00012073,2]
[331040470,1720028888980,155.10759368,0.00012314,2]
[331040472,1720028914232,690.00328514,0.00012302,2]
[331040481,1720029028946,523.44090366,0.00012314,2]
[331040488,1720029033384,-304.20459336,0.0001251,2]
[331040489,1720029033395,-328.21590955,0.0001251,2]
[331040490,1720029033763,-1737.5106585,0.0001251,2]
[331040493,1720029033772,-156.45894539,0.00013181,2]
[331040496,1720029033783,-360.699997,0.00013181,2]
[331040499,1720029033795,-10276.84105761,0.00013181,2]
[331040500,1720029033804,-150.0,0.00013863,2]
[331040501,1720029033812,-9509.76571959,0.0001387,2]
[331040502,1720029033823,-3913.55995196,0.0001387,2]
[331040503,1720029034736,1500.0,0.00012302,2]
[331040512,1720029038192,-6877.94906638,0.0001387,2]
[331040513,1720029038204,-220.18,0.0001389,2]
[331040514,1720029038215,-182.46591203,0.000139,2]
[331040515,1720029038225,-9236.68269313,0.00013999,2]
[331040516,1720029038234,-108658.83006528,0.00014,2]
[331040517,1720029038246,-61384.30311035,0.00014,2]
[331040518,1720029038258,-6272.35529764,0.00014,2]
[331040519,1720029038319,-86796.27233677,0.00014,2]
[331040520,1720029038330,-318.20514663,0.00014,2]
[331040549,1720029040224,-837.83558024,0.00014,2]
[331040550,1720029040312,-4368.20919247,0.00014,2]
[331040551,1720029040432,-581.24972892,0.00014,2]
[331040577,1720029040934,-125365.21318595,0.00014,2]
[331040579,1720029040946,-319.77194175,0.00014141,2]
[331040581,1720029040954,-1064.24623873,0.00014241,2]
[331040583,1720029040963,-45624.97694583,0.00015,2]
[331040585,1720029040972,-1064.24623866,0.00015103,2]
[331040587,1720029040981,-606.12,0.00015305,2]
[331040589,1720029040991,-407.99,0.00015841,2]
[331040591,1720029041000,-941.65,0.0001593,2]
[331040593,1720029041010,-1064.24623866,0.00015965,2]
[331040595,1720029041019,-182.32785994,0.00016593,2]
[331040597,1720029041027,-1773.36,0.00016615,3]
[331040599,1720029041036,-151.0,0.00016808,2]
[331040601,1720029041045,-151.0,0.00016808,2]
[331040603,1720029041053,-151.0,0.00016808,2]
[331040605,1720029041063,-497.998728,0.00016808,2]
[331040607,1720029041072,-497.998728,0.00016808,2]
[331040608,1720029041081,-151.0,0.00016808,2]
[331040609,1720029041090,-151.0,0.00016808,2]
[331040610,1720029041099,-151.0,0.00016808,2]
[331040611,1720029041108,-1064.24623866,0.00016827,2]
[331040612,1720029041116,-691.0,0.000173,3]
[331040613,1720029041125,-171.05,0.00017348,2]
[331040614,1720029041133,-19672.92,0.00017593,2]
[331040615,1720029041142,-1064.24623866,0.00017689,2]
[331040616,1720029041152,-270.89,0.00017912,2]
[331040617,1720029041162,-250.0,0.00017919,2]
[331040618,1720029041172,-941.65,0.00017921,2]
[331040619,1720029041182,-407.99,0.00018105,2]
[331040620,1720029041191,-191.23660534,0.00018324,2]
[331040621,1720029041205,-24647.33991007,0.00018324,2]
[331040622,1720029041215,-1064.24623866,0.00018551,2]
[331040623,1720029041225,-954.63821922,0.00018717,2]
[331040624,1720029041235,-1569.43628346,0.00018717,2]
[331040625,1720029041244,-276.15184313,0.00018919,2]
[331040626,1720029041255,-484.10288802,0.00018919,2]
[331040627,1720029041264,-151.0,0.00018968,2]
[331040628,1720029041274,-151.131279,0.00018968,2]
[331040629,1720029041284,-151.0,0.00018968,2]
[331040630,1720029041293,-151.0,0.00018968,2]
[331040631,1720029041302,-187.447909,0.00018968,2]
[331040632,1720029041312,-151.0,0.00018968,2]
[331040633,1720029041321,-153.193925,0.00018968,2]
[331040634,1720029041331,-377.441655,0.00018968,2]
[331040635,1720029041340,-377.441655,0.00018968,2]
[331040636,1720029041355,-227.12084219,0.00018999,2]
[331040637,1720029041367,-295.18416552,0.00018999,2]
[331040638,1720029041377,-1250.0,0.00019,2]
[331040639,1720029041387,-250.0,0.00019178,2]
[331040640,1720029041396,-293.73791624,0.00019332,4]
[331040641,1720029041406,-296.90387879,0.00019389,2]
[331040642,1720029041416,-151.0,0.00019399,2]
[331040643,1720029041425,-151.0,0.00019399,2]
[331040644,1720029041434,-163.507433,0.00019399,2]
[331040645,1720029041444,-151.0,0.00019399,2]
[331040646,1720029041453,-151.0,0.00019399,2]
[331040647,1720029041462,-163.507433,0.00019399,2]
[331040648,1720029041471,-151.0,0.00019399,2]
[331040649,1720029041481,-1064.24623866,0.00019413,2]
[331040650,1720029041490,-2500.0,0.000195,2]
[331040651,1720029041499,-151.0,0.000195,2]
[331040652,1720029041509,-151.0,0.000195,2]
[331040653,1720029041518,-497.998728,0.000195,2]
[331040654,1720029041528,-497.998728,0.000195,2]
[331040655,1720029041537,-151.0,0.000195,2]
[331040656,1720029041547,-151.0,0.000195,2]
[331040657,1720029041556,-151.0,0.000195,2]
[331040658,1720029041565,-500.0,0.00019863,2]
[331040659,1720029041574,-151.0,0.00019893,2]
[331040660,1720029041583,-151.0,0.00019893,2]
[331040661,1720029041594,-151.0,0.00019893,2]
[331040662,1720029041604,-151.0,0.00019893,2]
[331040663,1720029041613,-151.0,0.00019893,2]
[331040664,1720029041622,-941.65,0.00019912,2]
[331040665,1720029041631,-12760.47924032,0.0002,3]
[331040666,1720029041641,-6279.51081998,0.0002,2]
[331040667,1720029041650,-1064.24623866,0.00020275,2]
[331040668,1720029041659,-151.0,0.0002031,2]
[331040669,1720029041669,-151.0,0.0002031,2]
[331040670,1720029041678,-151.0,0.0002031,2]
[331040671,1720029041687,-151.0,0.0002031,2]
[331040672,1720029041887,-151.0,0.0002031,2]
[331040673,1720029041930,-151.0,0.0002031,2]
[331040674,1720029041940,-151.0,0.0002031,2]
[331040675,1720029041950,-151.0,0.0002031,2]
[331040676,1720029041959,-151.0,0.0002031,2]
[331040677,1720029041968,-151.0,0.0002031,2]
[331040678,1720029041978,-151.0,0.0002031,2]
[331040679,1720029041987,-151.0,0.0002031,2]
[331040680,1720029041996,-151.0,0.0002031,2]
[331040681,1720029042005,-407.99,0.00020369,2]
[331040682,1720029042015,-381.991,0.00020536,2]
[331040683,1720029042024,-150.0,0.0002062,2]
[331040684,1720029042032,-150.0,0.00020665,2]
[331040685,1720029042042,-150.0,0.00020675,2]
[331040686,1720029042051,-150.0,0.00020676,2]
[331040687,1720029042060,-150.0,0.00020679,2]
[331040688,1720029042070,-150.0,0.00020721,2]
[331040689,1720029042078,-150.0,0.00020755,2]
[331040690,1720029042087,-260.74907637,0.00020756,2]
[331040691,1720029042096,-150.0,0.00020768,2]
[331040692,1720029042105,-202.17295043,0.0002079,2]
[331040693,1720029042114,-165.329841,0.000208,2]
[331040694,1720029042123,-151.0,0.000208,2]
[331040695,1720029042135,-151.0,0.000208,2]
[331040696,1720029042144,-151.0,0.000208,2]
[331040697,1720029042153,-151.0,0.000208,2]
[331040698,1720029042162,-151.0,0.000208,2]
[331040699,1720029042171,-151.0,0.000208,2]
[331040700,1720029042181,-151.0,0.000208,2]
[331040701,1720029042189,-151.0,0.000208,2]
[331040702,1720029042199,-151.0,0.000208,2]
[331040703,1720029042212,-151.0,0.000208,2]
[331040704,1720029042221,-276.281596,0.000208,2]
[331040705,1720029042230,-497.998728,0.000208,2]
[331040706,1720029042239,-497.998728,0.000208,2]
[331040707,1720029042249,-151.0,0.000208,2]
[331040708,1720029042258,-151.0,0.000208,2]
[331040709,1720029042267,-163.507433,0.000208,2]
[331040710,1720029042277,-163.507433,0.000208,2]
[331040711,1720029042289,-151.0,0.000208,2]
[331040712,1720029042299,-151.0,0.000208,2]
[331040713,1720029042309,-151.0,0.000208,2]
[331040714,1720029042318,-151.0,0.000208,2]
[331040715,1720029042328,-151.0,0.000208,2]
[331040716,1720029042337,-151.0,0.000208,2]
[331040717,1720029042347,-151.0,0.000208,2]
[331040718,1720029042356,-151.0,0.000208,2]
[331040719,1720029042365,-151.0,0.000208,2]
[331040720,1720029042375,-151.0,0.000208,2]
[331040721,1720029042384,-377.441655,0.000208,2]
[331040722,1720029042393,-151.307137,0.000208,2]
[331040723,1720029042402,-377.441655,0.000208,2]
[331040724,1720029042412,-151.0,0.000208,2]
[331040725,1720029042421,-151.0,0.000208,2]
[331040726,1720029042430,-357.938633,0.000208,2]
[331040727,1720029042439,-151.0,0.000208,2]
[331040728,1720029042450,-357.938633,0.000208,2]
[331040729,1720029042459,-151.0,0.000208,2]
[331040730,1720029042467,-151.0,0.000208,2]
[331040731,1720029042477,-151.0,0.000208,2]
[331040732,1720029042486,-277.195157,0.000208,2]
[331040733,1720029042496,-151.0,0.000208,2]
[331040734,1720029042505,-151.825594,0.000208,2]
[331040735,1720029042515,-151.0,0.000208,2]
[331040736,1720029042525,-151.0,0.000208,2]
[331040737,1720029042534,-217.486911,0.000208,2]
[331040738,1720029042543,-151.0,0.000208,2]
[331040739,1720029042553,-217.486911,0.000208,2]
[331040740,1720029042563,-151.0,0.000208,2]
[331040741,1720029042572,-151.0,0.000208,2]
[331040742,1720029042581,-151.0,0.000208,2]
[331040743,1720029042591,-151.0,0.000208,2]
[331040744,1720029042602,-552.386126,0.000208,2]
[331040745,1720029042612,-552.386126,0.000208,2]
[331040746,1720029042621,-151.0,0.000208,2]
[331040747,1720029042631,-151.0,0.000208,2]
[331040748,1720029042640,-151.0,0.000208,2]
[331040749,1720029042649,-151.0,0.000208,2]
[331040750,1720029042659,-151.0,0.000208,2]
[331040751,1720029042668,-151.0,0.000208,2]
[331040752,1720029042678,-243.232019,0.000208,2]
[331040753,1720029042688,-151.0,0.000208,2]
[331040754,1720029042697,-151.0,0.000208,2]
[331040755,1720029042707,-243.232019,0.000208,2]
[331040757,1720029042716,-151.0,0.000208,2]
[331040759,1720029042727,-959.962475,0.000208,2]
[331040761,1720029042736,-14734.58052428,0.000208,2]
[331040763,1720029042783,-1720.39690758,0.000208,2]
[331040804,1720029043469,-919.21862842,0.000208,2]
[331040805,1720029043483,-532.60110364,0.000208,2]
[331040806,1720029043494,-486.29251965,0.000208,2]
[331040807,1720029043514,-339.9825,0.000208,2]
[331040808,1720029043525,-10180.87,0.000208,2]
[331040809,1720029044726,-2412.0,0.000208,2]
[331040822,1720029046366,-276.15184313,0.00018919,2]
[331040823,1720029046376,-1297.8203978,0.000208,2]
[331040824,1720029046387,-9511.7355,0.000208,2]
[331040825,1720029046399,-264.23971303,0.000208,2]
[331040826,1720029046410,-824.55,0.000208,2]
[331040827,1720029046481,-56342.12932511,0.000208,2]
[331040828,1720029046493,-156063.49654449,0.000208,2]
[331040829,1720029046503,-959.962475,0.000208,2]
[331040830,1720029046512,-151.0,0.000208,2]
[331040831,1720029046522,-151.0,0.000208,2]
[331040832,1720029046532,-151.0,0.000208,2]
[331040833,1720029046541,-151.0,0.000208,2]
[331040834,1720029046551,-151.0,0.000208,2]
[331040835,1720029046560,-151.0,0.000208,2]
[331040836,1720029046570,-151.0,0.000208,2]
[331040837,1720029046579,-154.847858,0.000208,2]
[331040838,1720029046589,-151.0,0.000208,2]
[331040839,1720029046599,-151.0,0.000208,2]
[331040840,1720029046609,-151.0,0.000208,2]
[331040841,1720029046618,-151.0,0.000208,2]
[331040842,1720029046627,-151.0,0.000208,2]
[331040843,1720029046636,-151.0,0.000208,2]
[331040844,1720029046646,-151.0,0.000208,2]
[331040845,1720029046655,-151.0,0.000208,2]
[331040846,1720029046664,-151.0,0.000208,2]
[331040847,1720029046673,-151.0,0.000208,2]
[331040848,1720029046683,-151.0,0.000208,2]
[331040849,1720029046692,-151.0,0.000208,2]
[331040850,1720029046704,-151.0,0.000208,2]
[331040851,1720029046714,-151.0,0.000208,2]
[331040852,1720029046723,-1041.180802,0.000208,2]
[331040853,1720029046733,-1041.180802,0.000208,2]
[331040854,1720029046743,-151.0,0.000208,2]
[331040855,1720029046753,-151.0,0.000208,2]
[331040856,1720029046762,-151.740638,0.000208,2]
[331040857,1720029046772,-151.0,0.000208,2]
[331040858,1720029046781,-151.0,0.000208,2]
[331040859,1720029046791,-151.0,0.000208,2]
[331040860,1720029046800,-151.0,0.000208,2]
[331040861,1720029046810,-151.0,0.000208,2]
[331040862,1720029046819,-150.0,0.00020802,2]
[331040863,1720029046829,-10225.1965465,0.00020807,2]
[331040864,1720029046838,-150.0,0.0002081,2]
[331040865,1720029046848,-150.0,0.00020816,2]
[331040866,1720029046857,-150.0,0.00020817,2]
[331040867,1720029046866,-150.0,0.00020819,2]
[331040868,1720029046876,-150.0,0.00020823,2]
[331040869,1720029046885,-150.0,0.00020832,2]
[331040870,1720029046895,-150.0,0.00020837,2]
[331040871,1720029046905,-150.0,0.00020871,2]
[331040872,1720029046914,-167.27843963,0.0002088,2]
[331040873,1720029046923,-162.65594097,0.0002088,2]
[331040874,1720029046933,-10225.1965465,0.0002088,2]
[331040875,1720029046942,-150.0,0.00020883,2]
[331040876,1720029046954,-150.0,0.00020884,2]
[331040877,1720029046963,-10225.1965465,0.0002089,2]
[331040878,1720029046972,-5277.5685,0.0002089,2]
[331040879,1720029046981,-151.0,0.000209,2]
[331040880,1720029046990,-151.0,0.000209,2]
[331040881,1720029047000,-357.938633,0.000209,2]
[331040882,1720029047009,-151.0,0.000209,2]
[331040883,1720029047018,-357.938633,0.000209,2]
[331040884,1720029047027,-151.0,0.000209,2]
[331040885,1720029047036,-151.679305,0.000209,2]
[331040886,1720029047045,-151.0,0.000209,2]
[331040887,1720029047054,-151.0,0.000209,2]
[331040888,1720029047063,-151.0,0.000209,2]
[331040889,1720029047072,-151.0,0.000209,2]
[331040890,1720029047081,-217.486911,0.000209,2]
[331040891,1720029047090,-151.0,0.000209,2]
[331040892,1720029047099,-217.486911,0.000209,2]
[331040893,1720029047108,-151.0,0.000209,2]
[331040894,1720029047117,-151.0,0.000209,2]
[331040895,1720029047127,-151.0,0.000209,2]
[331040896,1720029047136,-151.0,0.000209,2]
[331040897,1720029047145,-552.386126,0.000209,2]
[331040898,1720029047154,-552.386126,0.000209,2]
[331040899,1720029047163,-151.0,0.000209,2]
[331040900,1720029047172,-151.0,0.000209,2]
[331040901,1720029047181,-151.0,0.000209,2]
[331040902,1720029047190,-151.0,0.000209,2]
[331040903,1720029047200,-151.0,0.000209,2]
[331040904,1720029047211,-151.0,0.000209,2]
[331040905,1720029047221,-243.232019,0.000209,2]
[331040906,1720029047230,-151.0,0.000209,2]
[331040907,1720029047239,-151.0,0.000209,2]
[331040908,1720029047250,-243.232019,0.000209,2]
[331040909,1720029047259,-154.837434,0.000209,2]
[331040910,1720029047268,-959.962475,0.000209,2]
[331040911,1720029047277,-71829.60794979,0.000209,2]
[331040912,1720029047293,-363.366,0.000209,2]
[331040913,1720029047318,-1324.8,0.000209,2]
[331040915,1720029247710,1000.0,0.00025,60]
[331040919,1720029901160,429.15592799,0.00012314,2]
[331040972,1720030233669,-500.0,0.00014602,2]
[331040973,1720030233679,-500.0,0.00014602,2]
[331040974,1720030233689,-150.0,0.000147,2]
[331040975,1720030233698,-301.74096619,0.00014849,2]
[331040976,1720030233707,-684.46366164,0.00014926,2]
[331040977,1720030233716,-250.0,0.00015248,2]
[331040978,1720030233726,-173.55,0.00015314,2]
[331040979,1720030233735,-180.42,0.00015433,2]
[331040980,1720030233744,-43.6623885,0.00016246,2]
[331040981,1720030233886,-267.23393513,0.00016246,2]
[331040982,1720030233897,-289.10367637,0.00016246,2]
[331040983,1720030233906,-500.0,0.00016246,2]
[331040984,1720030233915,-362.29083987,0.000172,3]
[331040985,1720030233927,-2766.70916013,0.000172,3]
[331040986,1720030234129,-227.12084219,0.00017253,2]
[331040987,1720030234152,-1423.16551223,0.00017259,2]
[331040988,1720030234199,-3961.37037351,0.00017259,2]
[331040989,1720030234209,-126.16334754,0.00017518,2]
[331040993,1720030238320,-263.98665246,0.00017518,2]
[331040994,1720030238330,-400.0,0.0001789,2]
[331040995,1720030238339,-576.28894754,0.00018739,2]
[331040996,1720030238350,-334.65004453,0.00018739,2]
[331040997,1720030238360,-206.12734629,0.00018899,2]
[331040998,1720030238371,-276.15184313,0.00018899,2]
[331040999,1720030238380,-250.0,0.00019309,2]
[331041000,1720030238391,-297.03101715,0.00019352,2]
[331041001,1720030238400,-250.0,0.0001936,2]
[331041002,1720030238409,-250.0,0.00019441,2]
[331041003,1720030238418,-2500.0,0.000195,2]
[331041004,1720030238427,-124.36067058,0.00019578,2]
[331041005,1720030238438,-452.29932942,0.00019578,2]
[331041006,1720030238447,-225.0,0.00019782,2]
[331041007,1720030238456,-283.0368381,0.00019782,2]
[331041008,1720030238468,-107.1131619,0.00019782,2]
[331041009,1720030238478,-1000.0,0.00019888,2]
[331041010,1720030238488,-1200.32976567,0.00020523,2]
[331041011,1720030238500,-300.11965555,0.00020523,2]
[331041012,1720030238511,-1522.57839701,0.00020523,2]
[331041013,1720030238522,-2706.23107277,0.00020523,2]
[331041014,1720030238532,-177.154802,0.00020523,2]
[331041015,1720030238541,-6175.58307394,0.00020523,2]
[331041016,1720030238553,-539.1790548,0.00020523,2]
[331041017,1720030238572,-781.70271126,0.00020523,2]
[331041018,1720030238586,-6856.913412,0.00020523,2]
[331041019,1720030238595,-1432.314723,0.00020523,2]
[331041020,1720030238604,-155.567474,0.00020523,2]
[331041021,1720030238614,-381.991,0.00020536,2]
[331041022,1720030238625,-188.22778166,0.00020547,2]
[331041024,1720030238634,-216.0,0.000207,2]
[331041026,1720030238643,-500.0,0.00020715,2]
[331041028,1720030238652,-1000.0,0.00020779,2]
[331041030,1720030238664,-5729.258891,0.0002078,2]
[331041032,1720030238673,-7496.46484,0.0002078,2]
[331041034,1720030238682,-6856.913412,0.0002078,2]
[331041036,1720030238692,-1432.314723,0.0002078,2]
[331041038,1720030238701,-180.34297679,0.0002079,2]
[331041040,1720030238711,-180.34297679,0.0002079,2]
[331041042,1720030238720,-180.34297679,0.0002079,2]
[331041044,1720030238729,-180.34297679,0.0002079,2]
[331041046,1720030238738,-180.34297679,0.0002079,2]
[331041048,1720030238747,-40428.5291,0.000208,2]
[331041050,1720030238756,-500.0,0.00020822,2]
[331041052,1720030238766,-180.34297679,0.0002089,2]
[331041054,1720030238775,-491.0,0.000209,3]
[331041056,1720030238784,-257.0,0.000209,2]
[331041058,1720030238793,-191.0,0.000209,3]
[331041060,1720030238802,-225.25989,0.000209,2]
[331041062,1720030238811,-151.0,0.00020907,2]
[331041064,1720030238821,-180.34297679,0.00020979,2]
[331041066,1720030238831,-180.34297679,0.00020979,2]
[331041068,1720030238840,-2909.66931605,0.00020989,2]
[331041070,1720030238850,-180.34297679,0.0002099,2]
[331041072,1720030238860,-225.25950071,0.00021,2]
[331041074,1720030238871,-1300.0,0.00021,2]
[331041076,1720030238881,-225.0,0.00021,2]
[331041078,1720030238891,-356.0,0.00021,2]
[331041080,1720030238901,-180.34297679,0.00021015,2]
[331041082,1720030238911,-500.0,0.00021025,2]
[331041084,1720030238922,-200.0,0.00021025,2]
[331041086,1720030238932,-180.34297679,0.00021026,2]
[331041088,1720030238942,-180.34297679,0.00021026,2]
[331041090,1720030238951,-180.34297679,0.00021026,2]
[331041092,1720030238962,-180.34297679,0.00021026,2]
[331041094,1720030238971,-180.34297679,0.00021026,2]